[Event "31st Kavala Open-A 2022"]
[Site "Kavala"]
[Date "2022.07.31"]
[Round "7.6"]
[White "Halkias, Stelios"]
[Black "Trimitzios, Petros"]
[Result "1/2-1/2"]
[ECO "E56"]
[WhiteElo "2512"]
[BlackElo "2369"]
[Annotator "TA"]
[PlyCount "187"]
[EventDate "2022.07.27"]
[EventType "swiss"]
[EventCountry "GRE"]
[SourceTitle "playchess.com"]
[Source "ChessBase"]
[SourceQuality "1"]
[TimeControl "40/5400+30:1800+30"]

{[%evp 19,187,32,45,22,45,43,45,43,36,32,27,33,45,37,45,45,45,48,42,37,41,35,43,0,27,9,48,35,33,33,41,37,35,14,15,13,12,13,13,12,13,19,27,27,27,27,27,27,27,27,29,16,16,16,16,16,28,8,8,8,90,0,8,0,8,8,8,8,8,8,8,8,8,8,15,0,8,8,12,8,8,8,159,159,159,373,397,388,392,52,339,63,85,52,87,65,193,181,202,201,171,170,414,308,381,189,339,124,431,403,433,158,249,0,402,457,460,451,431,201,292,0,387,193,174,8,8,8,8,8,8,8,8,8,8,8,15,0,0,0,8,8,8,0,0,0,0,0,0,0,0,0,0,0,0,0,0,0,0,0,0,0,0,0,0,0,0,0,0,0]} 1. Nf3 {[%emt 0:03:16]} Nf6 {[%emt 0:00:20]} 2. c4 {[%emt 0:00:20]} e6 {[%emt 0:00:36]} 3. Nc3 {[%emt 0:01:37]} d5 {[%emt 0:00:45]} 4. e3 {[%emt 0:00:12]} a6 {[%emt 0:08:59]} 5. d4 {[%emt 0:03:14]} Be7 {[%emt 0:01:47]} 6. cxd5 {[%emt 0:04:40]} exd5 {[%emt 0:00:34]} 7. Bd3 {[%emt 0:00:06]} O-O {[%emt 0:01:04]} 8. O-O {[%emt 0:00:40]} c5 {[%emt 0:13:43]} 9. dxc5 {[%emt 0:12:38]} Bxc5 {[%emt 0:00:26]} 10. h3 {[%emt 0:13:17]} Nc6 {[%emt 0:10:00]} 11. Ne2 {[%emt 0:02:39] E56: Nimzo-Indian: Rubinstein: Main Line: 7...Nc6.} Be6 {[%emt 0:20:41]} 12. b3 {[%emt 0:02:40]} Qe7 {[%emt 0:00:40]} 13. Bb2 {[%emt 0:01:57] White is slightly better.} Rac8 {[%emt 0:02:42]} 14. Ned4 {[%emt 0:02:06] [#]} Nxd4 $146 {[%emt 0:06:56]} ({Predecessor:} 14... Nb4 15. Bb1 Ne4 16. a3 Nc6 17. Nxe6 Qxe6 18. b4 Ba7 19. Ba2 Nxf2 20. Rxf2 Qxe3 {½-½ (41) Pang,T (2127)-Lin,W (2416) Harbin 2016}) 15. Nxd4 {[%emt 0:01:59]} Ba3 {[%emt 0:02:43]} 16. Qe2 {[%emt 0:02:01]} Rc7 {[%emt 0:01:14]} 17. Rac1 {[%emt 0:05:22]} Rfc8 {[%emt 0:00:25]} 18. Rxc7 {[%emt 0:01:05]} Rxc7 {[%emt 0:00:02]} 19. Rd1 {[%emt 0:06:29]} h6 {[%emt 0:02:14]} 20. Bb1 {[%emt 0:06:17]} Bd7 {[%emt 0:02:11]} 21. Bd3 {[%emt 0:04:45]} Bd6 {[%emt 0:07:26]} (21... Be6 $5) 22. Rd2 {[%emt 0:10:20]} Ba3 {[%emt 0:06:32]} (22... Ne4 {seems wilder.} 23. Rc2 Nc5 24. Bf5 Qe5) 23. Bxa3 {[%emt 0:02:08]} Qxa3 {[%emt 0:00:01]} 24. Rc2 {[%emt 0:00:15]} Qd6 {[%emt 0:01:27]} 25. Rxc7 {[%emt 0:01:48]} (25. Qd1 {looks sharper.} Ne4 26. Ne2 Rxc2 27. Bxc2 Nf6 28. Qd4) 25... Qxc7 {[%emt 0:00:02]} 26. Qc2 {[%emt 0:00:34]} Qxc2 {[%emt 0:04:10]} 27. Bxc2 $11 {[%emt 0:00:08][%mdl 4096] Endgame KBN-KBN} Kf8 {[%emt 0:00:08]} 28. f3 {[%emt 0:03:51]} Ke7 {[%emt 0:01:38]} 29. Kf2 {[%emt 0:02:45]} Kd6 {[%emt 0:00:26]} 30. Ke2 {[%emt 0:00:38]} g6 {[%emt 0:03:11]} 31. Kd2 {[%emt 0:01:00]} Kc5 {[%emt 0:00:04]} 32. Kc3 {[%emt 0:00:48]} a5 {[%emt 0:00:07]} 33. a3 {[%emt 0:00:19]} b6 {[%emt 0:00:01]} 34. Bd3 {[%emt 0:01:41]} Ne8 {[%emt 0:02:24]} 35. b4+ {[%emt 0:01:13]} axb4+ {[%emt 0:00:02]} 36. axb4+ {[%emt 0:00:04]} Kd6 {[%emt 0:00:01]} 37. g4 {[%emt 0:00:57]} Ng7 {[%emt 0:01:15]} 38. f4 {[%emt 0:01:51]} g5 {[%emt 0:01:24]} 39. Bb5 {[%emt 0:01:15]} Bc8 {[%emt 0:00:52]} (39... Bxb5 $11 {remains equal.} 40. Nxb5+ Kc6 41. Nd4+ Kc7) 40. Bd3 {[%emt 0:00:00] White is more active.} (40. f5 $16) 40... Bd7 {[%emt 0:00:00]} 41. Bb5 {[%emt 0:06:26]} Bxb5 {[%emt 0:08:20]} 42. Nxb5+ {[%emt 0:00:23] KN-KN} Kc6 {[%emt 0:00:01]} 43. Nd4+ {[%emt 0:01:29]} Kd7 {[%emt 0:02:06]} 44. Kd3 {[%emt 0:05:59]} Kd6 {[%emt 0:05:53]} 45. Ke2 {[%emt 0:06:38]} f6 {[%emt 0:01:36]} 46. Kd3 {[%emt 0:04:58]} Kd7 {[%emt 0:02:38]} 47. Ke2 {[%emt 0:05:03]} Kd6 {[%emt 0:07:38]} 48. Kf3 {[%emt 0:00:27]} Ke7 {[%emt 0:03:29]} 49. Kg3 {[%emt 0:01:18]} Kf7 {[%emt 0:02:11]} 50. h4 {[%emt 0:00:54][%cal Bh3h4,Bh4h5][%mdl 32]} Ke7 $2 {[%emt 0:01:34]} ({Black should play} 50... gxh4+ $11 51. Kxh4 Ke7) 51. h5 $16 {[%emt 0:00:32]} Kf7 {[%emt 0:00:30]} 52. Kf3 {[%emt 0:00:40]} Ke7 {[%emt 0:00:12]} 53. Ke2 $1 {[%emt 0:01:29]} Kd7 {[%emt 0:00:34]} 54. Kf2 $2 {[%emt 0:00:50]} (54. Kd2 $18 {Hoping for fxg5.} Ke7 55. Kc3) 54... Ke7 $2 {[%emt 0:00:24][%mdl 8192]} (54... Kd6 $1 $14) 55. Kf3 $2 {[%emt 0:00:43]} ({White has to play} 55. fxg5 $1 $18 fxg5 56. Kf3) 55... Kd6 $1 $14 {[%emt 0:00:28]} 56. Kg2 {[%emt 0:01:07] Black must now prevent Kg1.} Ke7 {[%emt 0:00:24]} 57. Kf2 {[%emt 0:00:17] Strongly threatening Ke2.} Kd7 {[%emt 0:00:23]} ({Better is} 57... Kd6 $1 $14) 58. Ke1 $18 {[%emt 0:00:17]} Ke7 {[%emt 0:00:39]} 59. Kd2 $1 {[%emt 0:00:01]} Kd7 {[%emt 0:00:12]} 60. Kc3 {[%emt 0:00:12]} Kd6 $2 {[%emt 0:00:45]} (60... Ke7 61. Kc2 gxf4) 61. Kd3 {[%emt 0:00:49]} Kd7 {[%emt 0:00:15]} 62. Kd2 {[%emt 0:01:23]} (62. fxg5 $142 fxg5 63. e4) 62... Ke7 {[%emt 0:00:15] [#]} (62... gxf4 $142 63. exf4 Ke8) 63. Kc2 $2 {[%emt 0:00:25]} (63. fxg5 $1 $18 {is the precise move to win.} fxg5 64. Ke2) 63... Kd7 $2 {[%emt 0:00:16][%mdl 8192]} (63... gxf4 $16 {is more resistant.} 64. exf4 Kf7) 64. Kb3 {[%emt 0:00:37]} Kd6 {[%emt 0:01:49]} 65. Kb2 $2 {[%emt 0:00:33]} (65. fxg5 $18 fxg5 66. Ka4) 65... Kd7 {[%emt 0:00:07]} (65... Ke7 $16 {might work better.} 66. Kb3 Kd8) 66. Kc3 $2 {[%emt 0:00:08]} (66. fxg5 fxg5 67. Kb3) 66... Kd6 $1 {[%emt 0:00:29]} 67. Kb3 {[%emt 0:00:00]} Kd7 {[%emt 0:00:09] [#]} 68. Ka4 $1 {[%emt 0:00:49]} Kc7 {[%emt 0:00:40]} 69. Nb5+ {[%emt 0:01:03]} (69. Kb5 $142) 69... Kc6 {[%emt 0:00:11]} (69... Kd7 {keeps fighting.} 70. Nd4 Kc7 71. fxg5 fxg5) 70. Nd4+ {[%emt 0:00:18]} Kc7 $1 {[%emt 0:00:01]} 71. Ka3 {[%emt 0:00:39]} (71. Kb5 $142) 71... Kd7 {[%emt 0:00:25]} 72. b5 $2 {[%emt 0:00:33]} (72. fxg5 $18 fxg5 73. Ka4) 72... Ke7 {[%emt 0:00:48] The position is equal.} 73. Kb3 {[%emt 0:00:05]} Kf7 {[%emt 0:00:23]} 74. Kc3 {[%emt 0:00:19]} Ke7 {[%emt 0:00:41]} 75. Kd3 {[%emt 0:00:56] Threatens to win with fxg5.} Kd6 {[%emt 0:00:17]} 76. Kd2 {[%emt 0:00:34]} Ke7 {[%emt 0:01:00]} 77. Ke2 {[%emt 0:00:14]} Kd7 {[%emt 0:00:16]} 78. Kf2 {[%emt 0:00:34]} Ke7 {[%emt 0:00:15]} 79. Ke1 {[%emt 0:00:44]} Kd7 {[%emt 0:00:27]} 80. Ke2 {[%emt 0:00:15]} Ke7 {[%emt 0:00:30]} 81. Nc6+ {[%emt 0:00:47]} Kd6 {[%emt 0:00:08]} 82. Kd3 {[%emt 0:00:16]} Ne6 {[%emt 0:00:47]} 83. fxg5 {[%emt 0:00:29]} fxg5 {[%emt 0:00:25]} 84. Nd4 {[%emt 0:00:06] And now Nf5+ would win.} Ng7 {[%emt 0:00:12]} 85. e4 {[%emt 0:01:04]} Ke5 $1 {[%emt 0:00:13]} 86. Nc6+ {[%emt 0:00:12]} Kd6 {[%emt 0:01:39]} 87. e5+ {[%emt 0:00:54]} Ke6 $1 {[%emt 0:00:27]} 88. Kd4 {[%emt 0:00:32]} Ne8 {[%emt 0:00:07]} 89. Nd8+ {[%emt 0:00:20]} Ke7 {[%emt 0:00:15]} 90. Nc6+ {[%emt 0:00:22]} Ke6 {[%emt 0:00:01]} 91. Kc3 {[%emt 0:00:45]} Nc7 {[%emt 0:00:35]} 92. Kb4 {[%emt 0:00:05]} Ne8 {[%emt 0:00:20]} 93. Kc3 {[%emt 0:00:51]} Nc7 {[%emt 0:00:09]} 94. Kb4 {[%emt 0:00:19] White really could win this.  Weighted Error Value: White=0.31/Black=0.29 (precise)} 1/2-1/2

[Event "31st Kavala Open-A 2022"]
[Site "Kavala"]
[Date "2022.07.31"]
[Round "7.7"]
[White "Vrolijk, Liam"]
[Black "Priyanka Nutakki"]
[Result "1-0"]
[ECO "A17"]
[WhiteElo "2464"]
[BlackElo "2308"]
[Annotator "RC"]
[PlyCount "61"]
[EventDate "2022.07.27"]
[EventType "swiss"]
[EventCountry "GRE"]
[SourceTitle "playchess.com"]
[Source "ChessBase"]
[SourceQuality "1"]
[TimeControl "40/5400+30:1800+30"]

1. Nf3 {[%emt 0:00:03]} d5 {[%emt 0:05:08]} 2. e3 {[%emt 0:00:10]} Nf6 {[%emt 0:00:18]} 3. c4 {[%emt 0:00:08]} e6 {[%emt 0:00:31]} 4. Nc3 {[%emt 0:00:09]} a6 {[%emt 0:04:14]} 5. b3 {[%emt 0:03:25]} b6 {[%emt 0:00:33]} 6. cxd5 {[%emt 0:02:41]} exd5 {[%emt 0:00:19]} 7. g3 {[%emt 0:00:25]} Bd6 {[%emt 0:00:48]} 8. Bg2 {[%emt 0:00:46]} O-O {[%emt 0:00:07]} 9. O-O {[%emt 0:00:45]} Be6 {[%emt 0:06:47]} 10. Bb2 {[%emt 0:02:51]} c5 {[%emt 0:00:35]} 11. d4 {[%emt 0:04:59]} Nc6 {[%emt 0:05:11]} 12. Rc1 {[%emt 0:07:25]} Rc8 {[%emt 0:01:02]} 13. dxc5 {[%emt 0:05:13]} bxc5 {[%emt 0:03:26]} 14. Na4 {[%emt 0:02:32]} Nb8 {[%emt 0:10:38]} 15. Bxf6 {[%emt 0:09:41]} Qxf6 {[%emt 0:03:00]} 16. Nb6 {[%emt 0:00:38]} Rcd8 {[%emt 0:00:20]} 17. Nxd5 {[%emt 0:01:22]} Bxd5 {[%emt 0:00:25]} 18. Qxd5 {[%emt 0:03:12]} Bxg3 {[%emt 0:00:15]} 19. Qxc5 {[%emt 0:04:24]} Bd6 {[%emt 0:00:10]} 20. Qg5 {[%emt 0:01:26]} Qb2 {[%emt 0:12:18]} 21. Nd4 {[%emt 0:03:57]} h6 {[%emt 0:00:46]} 22. Qa5 {[%emt 0:02:57]} Rc8 {[%emt 0:02:02]} 23. Rxc8 {[%emt 0:04:14]} Rxc8 {[%emt 0:00:02]} 24. Qf5 {[%emt 0:01:17]} Rc1 {[%emt 0:14:59]} 25. Bd5 {[%emt 0:01:50]} Rxf1+ {[%emt 0:00:19]} 26. Kxf1 {[%emt 0:00:07]} Qc1+ {[%emt 0:00:05]} 27. Kg2 {[%emt 0:00:34]} Qc7 {[%emt 0:00:09]} 28. Qg6 {[%emt 0:01:36]} Be5 {[%emt 0:08:01]} 29. Nf5 {[%emt 0:00:59]} Kf8 {[%emt 0:01:34]} 30. Qh7 {[%emt 0:00:13]} g6 {[%emt 0:00:05]} 31. Nxh6 {[%emt 0:00:33]} 1-0

[Event "31st Kavala Open-A 2022"]
[Site "Kavala"]
[Date "2022.07.31"]
[Round "7.8"]
[White "Levin, Guy"]
[Black "Pijpers, Arthur"]
[Result "0-1"]
[ECO "A34"]
[WhiteElo "2363"]
[BlackElo "2458"]
[Annotator "RC"]
[PlyCount "46"]
[EventDate "2022.07.27"]
[EventType "swiss"]
[EventCountry "GRE"]
[SourceTitle "playchess.com"]
[Source "ChessBase"]
[SourceQuality "1"]
[TimeControl "40/5400+30:1800+30"]

1. Nf3 {[%emt 0:00:02]} c5 {[%emt 0:00:10]} 2. c4 {[%emt 0:00:10]} Nf6 {[%emt 0:00:05]} 3. g3 {[%emt 0:00:05]} d5 {[%emt 0:00:43]} 4. cxd5 {[%emt 0:00:42]} Nxd5 {[%emt 0:00:06]} 5. Nc3 {[%emt 0:00:07]} Nc6 {[%emt 0:00:30]} 6. Bg2 {[%emt 0:00:08]} g6 {[%emt 0:00:56]} 7. h4 {[%emt 0:04:10]} Bg7 {[%emt 0:07:35]} 8. h5 {[%emt 0:02:36]} Bf5 {[%emt 0:05:47]} 9. h6 {[%emt 0:40:45]} Bf6 {[%emt 0:00:21]} 10. Nh4 {[%emt 0:00:11]} Nxc3 {[%emt 0:06:24]} 11. bxc3 {[%emt 0:00:46]} Bd7 {[%emt 0:12:25]} 12. Rb1 {[%emt 0:07:54]} b6 {[%emt 0:00:47]} 13. Bb2 {[%emt 0:00:29]} c4 {[%emt 0:09:50]} 14. Bd5 {[%emt 0:18:47]} Ne5 {[%emt 0:09:13]} 15. Bxa8 {[%emt 0:01:37]} Qxa8 {[%emt 0:00:02]} 16. f3 {[%emt 0:00:24]} g5 {[%emt 0:00:55]} 17. Ng2 {[%emt 0:06:38]} g4 {[%emt 0:00:53]} 18. O-O {[%emt 0:01:53]} gxf3 {[%emt 0:04:27]} 19. d4 {[%emt 0:00:39]} fxg2 {[%emt 0:08:44]} 20. Rxf6 {[%emt 0:00:15]} exf6 {[%emt 0:00:02]} 21. dxe5 {[%emt 0:00:16]} Qe4 {[%emt 0:00:05]} 22. Kh2 {[%emt 0:04:38]} Bc6 {[%emt 0:03:01]} 23. exf6 {[%emt 0:02:14]} g1=Q+ {[%emt 0:00:20]} 0-1

[Event "31st Kavala Open-A 2022"]
[Site "Kavala"]
[Date "2022.07.31"]
[Round "7.9"]
[White "Stefanou, Dimitrios"]
[Black "Can, Isik"]
[Result "0-1"]
[ECO "D19"]
[WhiteElo "2184"]
[BlackElo "2445"]
[Annotator "TA"]
[PlyCount "74"]
[EventDate "2022.07.27"]
[EventType "swiss"]
[EventCountry "GRE"]
[SourceTitle "playchess.com"]
[Source "ChessBase"]
[SourceQuality "1"]
[TimeControl "40/5400+30:1800+30"]

{[%evp 21,74,33,23,7,14,-36,-31,-37,-33,-90,-87,-91,-91,-93,-100,-95,-93,-95,-115,-121,-118,-158,-154,-145,-122,-266,-285,-306,-306,-298,-300,-289,-286,-327,-342,-373,-396,-393,-370,-366,-374,-485,-416,-652,-646,-600,-567,-1612,-1659,-1118,-746,-756,-739,-921,-814]} 1. d4 {[%emt 0:00:03]} d5 {[%emt 0:01:58]} 2. c4 {[%emt 0:00:09]} c6 {[%emt 0:00:06]} 3. Nf3 {[%emt 0:00:07]} Nf6 {[%emt 0:00:11]} 4. Nc3 {[%emt 0:00:07]} dxc4 {[%emt 0:00:12]} 5. a4 {[%emt 0:00:10]} Bf5 {[%emt 0:00:05]} 6. e3 {[%emt 0:00:10]} e6 {[%emt 0:00:08]} 7. Bxc4 {[%emt 0:00:12]} Bb4 {[%emt 0:00:18]} 8. O-O {[%emt 0:00:14]} O-O {[%emt 0:00:02]} 9. Qe2 {[%emt 0:00:20]} Nbd7 {[%emt 0:03:08]} 10. e4 {[%emt 0:00:27]} Bg4 {[%emt 0:00:03]} 11. Rd1 {[%emt 0:00:14]} Qc7 {[%emt 0:00:14]} 12. e5 {[%emt 0:08:35] D19: Slav Defence: 5 a4 Bf5 6 e3: Main line with 9 Qe2.} Nd5 {[%emt 0:00:20]} 13. Nxd5 {[%emt 0:15:52]} (13. Bd2 $11) 13... exd5 $15 {[%emt 0:03:17]} 14. Bd3 {[%emt 0:00:47][%cal Od3h7] Black is slightly better.} f6 $1 {[%emt 0:00:01] aiming for ...fxe5.} 15. e6 {[%emt 0:11:59] [#]} ({Better is} 15. Qc2 $15 h6 16. e6 Bxe6 17. Bh7+ Kh8 18. Nh4) 15... Rfe8 $1 $17 {[%emt 0:01:01]} 16. Bxh7+ {[%emt 0:06:17]} Kxh7 {[%emt 0:00:36]} 17. Qd3+ {[%emt 0:00:12]} Kg8 {[%emt 0:16:06]} 18. exd7 {[%emt 0:00:12]} Qxd7 {[%emt 0:00:31] [#]} 19. h3 $146 {[%emt 0:01:45]} ({Predecessor:} 19. Bd2 Bf5 20. Qb3 Bd6 21. Bb4 Bf4 22. Re1 Be4 23. Nd2 Bg6 24. a5 Qf5 25. Nf1 {½-½ (35) Livaic,L (2461)-Soysal,S (2381) Banja Vrujci 2017}) 19... Bf5 {[%emt 0:06:41]} 20. Qb3 {[%emt 0:00:20]} Bd6 {[%emt 0:00:29][%cal Of5h3] This bishop pair is nice.} 21. Nd2 {[%emt 0:07:33]} Qf7 $36 {[%emt 0:19:27][%mdl 2048] Keeping White busy. 0x0.002363554879dp-1022s more active pieces. The white rooks are badly placed.} 22. Nf1 {[%emt 0:05:00]} Qg6 {[%emt 0:00:39] Hoping for ...Bc2.} 23. Bd2 {[%emt 0:01:22] [#] This move loses the game for White.} (23. Qc3 $17) 23... Be4 $1 $19 {[%emt 0:03:12][%csl Ge4][%cal Rg6g2]} 24. f3 {[%emt 0:06:22]} Bc2 {[%emt 0:02:53]} 25. Qxb7 {[%emt 0:00:22]} Bxd1 {[%emt 0:00:29]} 26. Rxd1 {[%emt 0:00:21]} Qc2 {[%emt 0:00:18][%csl LRa4,LRd1]} 27. Rc1 {[%emt 0:01:46]} Qxa4 {[%emt 0:00:40]} 28. Qxc6 {[%emt 0:09:17]} Qxd4+ {[%emt 0:00:45]} 29. Kh1 {[%emt 0:00:11] [#]} Rac8 $1 {[%emt 0:07:40]} 30. Qd7 {[%emt 0:05:19]} Rcd8 {[%emt 0:01:01]} 31. Qc6 {[%emt 0:02:07]} Bf4 {[%emt 0:05:35]} 32. Re1 {[%emt 0:03:52]} (32. Bxf4 $142 Qxf4 33. Rd1) 32... Rxe1 {[%emt 0:00:47] Black is clearly winning.} ({Stronger than} 32... Bxd2 33. Rxe8+ Rxe8 34. Qxe8+ Kh7 35. Nxd2 Qxd2 36. Qh5+ Kg8 37. Qe8+ Kh7 38. Qh5+ Kg8 39. Qe8+ Kh7 $11) 33. Bxe1 {[%emt 0:00:05]} Qc4 {[%emt 0:02:05][%cal Rc4f1]} 34. Qe6+ {[%emt 0:00:08]} Kf8 {[%emt 0:00:47][%cal Rc4f1]} 35. Ne3 {[%emt 0:01:12]} Bxe3 {[%emt 0:00:26]} 36. Qxe3 {[%emt 0:00:17]} Re8 {[%emt 0:00:08]} 37. Qa3+ {[%emt 0:00:22]} Kg8 {[%emt 0:00:15] Weighted Error Value: White=0.64/Black=0.16 (very precise)} 0-1

[Event "31st Kavala Open-A 2022"]
[Site "Kavala"]
[Date "2022.07.31"]
[Round "7.10"]
[White "Tarhan, Adar"]
[Black "Kanakaris, Georgios"]
[Result "1/2-1/2"]
[ECO "C07"]
[WhiteElo "2201"]
[BlackElo "2389"]
[Annotator "TA"]
[PlyCount "120"]
[EventDate "2022.07.27"]
[EventType "swiss"]
[EventCountry "GRE"]
[SourceTitle "playchess.com"]
[Source "ChessBase"]
[SourceQuality "1"]
[TimeControl "40/5400+30:1800+30"]

{[%evp 11,120,0,11,0,15,0,4,0,-5,-11,0,0,0,0,4,0,11,0,3,-8,-3,-14,-23,-41,-61,-54,-50,-52,-52,-50,-45,-46,-27,-58,-56,-66,-31,-34,0,-9,0,-27,-41,-89,-87,-181,-170,-152,-76,-76,-76,-76,-76,-76,-77,-79,-73,-54,-69,-81,-97,-72,0,0,0,0,0,0,0,0,0,0,0,0,0,0,0,0,0,0,0,0,0,0,0,0,0,0,0,0,0,0,0,0,0,0,0,0,0,0,0,0,-4,-18,0,0,0,0,0,0,0]} 1. e4 {[%emt 0:00:46]} e6 {[%emt 0:00:12]} 2. d4 {[%emt 0:00:12]} d5 {[%emt 0:00:07]} 3. Nd2 {[%emt 0:00:05][%cal Bb1d2,Bd2b3,Bb3d4][%mdl 32]} a6 {[%emt 0:00:24]} 4. c3 {[%emt 0:02:01]} c5 {[%emt 0:00:54]} 5. Ngf3 {[%emt 0:00:19]} Nc6 {[%emt 0:00:54]} 6. exd5 {[%emt 0:01:34]} exd5 {[%emt 0:00:18]} 7. dxc5 {[%emt 0:01:17] C07: French Tarrasch: 3...c5, 4 Ngf3 and 4 exd5 Qxd5.} Bxc5 {[%emt 0:00:30][%cal Bf8c5,Bc5b6,Bb6c7][%mdl 32]} 8. Nb3 {[%emt 0:00:17]} Bb6 {[%emt 0:01:27]} 9. Be2 {[%emt 0:03:26]} Nf6 {[%emt 0:01:05]} 10. O-O {[%emt 0:00:10]} h6 {[%emt 0:03:49]} 11. Nbd4 {[%emt 0:02:41]} O-O {[%emt 0:01:08]} 12. Be3 {[%emt 0:02:39]} Bc7 {[%emt 0:11:23] [#]} 13. Re1 $146 {[%emt 0:04:40]} ({Predecessor:} 13. Qc1 Re8 14. Bd3 Ne4 15. Bf4 Bb6 16. Re1 Qf6 17. Be3 Bc7 18. c4 Ne5 19. Qc2 {0-1 (61) Ozbay,E (2114)-Hojjatova,A (2356) Manavgat 2018}) 13... Re8 {[%emt 0:06:02]} 14. Bf1 {[%emt 0:04:32]} Bg4 {[%emt 0:06:34]} 15. Qa4 {[%emt 0:03:59]} Qd7 {[%emt 0:05:51]} 16. Nxc6 {[%emt 0:03:08][%cal Of3d4]} Bxf3 {[%emt 0:13:31]} 17. gxf3 {[%emt 0:00:40][%cal Oc6e7]} bxc6 {[%emt 0:00:33]} 18. Bf4 {[%emt 0:01:54]} Bxf4 {[%emt 0:09:16]} 19. Qxf4 {[%emt 0:00:05]} a5 {[%emt 0:00:09]} 20. Bd3 {[%emt 0:02:54]} Qb7 {[%emt 0:09:01]} 21. b3 {[%emt 0:02:26]} Qb6 {[%emt 0:00:29]} 22. Rac1 {[%emt 0:18:12]} c5 {[%emt 0:03:39]} 23. Kh1 {[%emt 0:06:08]} Rxe1+ {[%emt 0:07:22]} 24. Rxe1 {[%emt 0:00:06]} Re8 {[%emt 0:05:18]} 25. Rxe8+ {[%emt 0:02:01]} Nxe8 $11 {[%emt 0:00:04][%mdl 4096] Endgame KQB-KQN} 26. Qf5 {[%emt 0:04:47]} Qe6 {[%emt 0:01:21]} 27. Qh7+ {[%emt 0:01:29]} (27. Qxe6 $15 fxe6 28. f4) 27... Kf8 $17 {[%emt 0:00:11]} 28. Qh8+ {[%emt 0:00:03]} (28. Bf1 $17) 28... Ke7 $19 {[%emt 0:00:06]} 29. Bb5 {[%emt 0:00:03]} Nd6 {[%emt 0:01:15]} (29... Qe1+ $142 30. Kg2 Nc7) 30. Qb8 $17 {[%emt 0:00:25]} Qc8 $1 {[%emt 0:10:03]} ({Much weaker is} 30... Nxb5 31. Qxb5 Qe1+ 32. Kg2 Qxc3 33. Qb7+ Ke6 34. Qc6+ Ke7 35. Qc7+ Ke8 36. Qc6+ Ke7 37. Qc7+ Ke8 38. Qc6+ Ke7 $11) 31. Qa7+ {[%emt 0:00:18] [#]} Qb7 $1 {[%emt 0:00:03]} 32. Qxb7+ {[%emt 0:00:08]} Nxb7 {[%emt 0:00:03] KB-KN} 33. Bc6 {[%emt 0:00:06][%csl LRb7,LRd5] [#]} Nd6 {[%emt 0:00:02]} 34. Bxd5 {[%emt 0:00:04]} Nb5 $1 {[%emt 0:00:04]} 35. Bc4 {[%emt 0:03:16]} Nxc3 {[%emt 0:00:04]} 36. a4 {[%emt 0:00:12]} f5 {[%emt 0:02:09]} (36... Kf6 $17 37. Kg2 Ke5) 37. f4 $1 $11 {[%emt 0:00:40] The position is equal.} Ne4 {[%emt 0:00:42]} 38. Kg2 {[%emt 0:00:15]} Kf6 {[%emt 0:01:32]} 39. Kf3 {[%emt 0:02:02]} Nd2+ {[%emt 0:00:33]} 40. Ke3 {[%emt 0:00:00]} Ne4 {[%emt 0:00:00]} 41. Bd3 {[%emt 0:02:26]} Nd6 {[%emt 0:03:28]} 42. h4 {[%emt 0:03:01]} Ke7 {[%emt 0:04:59]} 43. Kf3 {[%emt 0:03:25]} Kd7 {[%emt 0:01:53]} 44. Ke3 {[%emt 0:00:16]} Kc7 {[%emt 0:02:31]} 45. Bc4 {[%emt 0:01:34]} Kc6 {[%emt 0:01:11]} 46. Be6 {[%emt 0:01:20]} Kc7 {[%emt 0:01:56]} 47. Kd3 {[%emt 0:01:17]} Kd8 {[%emt 0:00:32]} 48. Ke3 {[%emt 0:00:48]} Ke7 {[%emt 0:01:28]} 49. Bc4 {[%emt 0:00:26]} Kd7 {[%emt 0:01:30]} 50. Bd3 {[%emt 0:00:18]} g6 {[%emt 0:03:34]} 51. Bc4 {[%emt 0:01:25]} Ke7 {[%emt 0:02:11]} 52. f3 {[%emt 0:03:47]} Ke8 {[%emt 0:06:55]} 53. Be6 {[%emt 0:00:55]} Kd8 {[%emt 0:00:51]} 54. Kd3 {[%emt 0:00:24]} Ke7 {[%emt 0:00:10]} 55. Bc4 {[%emt 0:00:28]} Kf6 {[%emt 0:01:08]} 56. Ke3 {[%emt 0:00:38]} Nxc4+ {[%emt 0:00:21]} 57. bxc4 {[%emt 0:00:11]} g5 {[%emt 0:01:19]} 58. fxg5+ {[%emt 0:00:55]} hxg5 {[%emt 0:00:13]} 59. f4 {[%emt 0:00:12]} gxh4 {[%emt 0:00:58] ( -> ...Kg6)} 60. Kf3 {[%emt 0:00:08]} Kg6 {[%emt 0:00:23] And White is the lucky defender.  Weighted Error Value: White=0.06 (flawless) /Black=0.06 (flawless)} 1/2-1/2